bitfinex-derivatives/quotes_SOLF0:USTF0_20260110
["timestamp","ask_amount","ask_price","bid_price","bid_amount"]
[1768042001018,0.05437361,136.95,136.91,0.33850547]
[1768042004624,0.39354821,136.95,136.89,0.33850547]
[1768042009321,0.05437361,136.95,136.9,0.33850547]
[1768042009916,0.39354821,136.95,136.9,0.33850547]
[1768042016919,0.05437361,136.95,136.9,0.33850547]
[1768042018122,0.4211964,136.95,136.9,0.33850547]
[1768042018719,0.05437361,136.95,136.9,0.33850547]
[1768042019623,0.05437361,136.95,136.91,0.34409722]
[1768042021826,0.05437361,136.95,136.93,0.34409722]
[1768042033346,0.05437361,136.95,136.92,6.5809]
[1768042033744,0.05437361,136.95,136.92,6.9366834]
[1768042034540,6.5777,136.99,136.9,1.13892186]
[1768042034541,0.36286651,137.0,136.94,0.3014638]
[1768042035547,0.36286651,137.0,136.94,6.8813638]
[1768042036043,0.36286651,137.0,136.96,0.04625618]
[1768042046556,0.36286651,136.99,136.92,0.30346505]
[1768042046751,0.36286651,136.98,136.92,0.30346505]
[1768042048558,0.36286651,136.97,136.92,0.30346505]
[1768042049756,0.04686566,136.96,136.92,0.30346505]
[1768042055166,0.39254486,136.96,136.9,6.93359447]
[1768042055967,0.39254486,136.96,136.9,0.35199447]
[1768042058080,0.39254486,136.96,136.92,0.0502693]
[1768042062774,0.04686566,136.96,136.92,0.40407826]
[1768042063672,0.04686566,136.96,136.92,0.0502693]
[1768042071285,0.04686566,136.96,136.92,0.40602502]
[1768042075894,0.40261692,136.96,136.92,0.0502693]
[1768042083695,0.40261692,136.96,136.87,6.92558926]
[1768042083696,0.35676706,136.94,136.87,6.92558926]
[1768042083895,0.35676706,136.94,136.88,0.34258926]
[1768042084794,0.35676706,136.94,136.86,0.34258926]
[1768042085200,6.5797,136.95,136.86,0.34258926]
[1768042085201,0.04823611,136.92,136.86,0.34258926]
[1768042085806,0.40500317,136.92,136.86,0.34258926]
[1768042086001,0.40500317,136.92,136.86,6.92638926]
[1768042086699,0.04823611,136.92,136.88,0.34258926]
[1768042087400,0.40500317,136.92,136.87,0.34258926]
[1768042090493,0.04823611,136.92,136.88,0.34258926]
[1768042091005,0.35676706,136.96,136.88,0.34258926]
[1768042091199,0.35676706,136.95,136.88,0.34258926]
[1768042091400,0.05000076,136.91,136.88,0.34258926]
[1768042096813,0.40676782,136.91,136.84,13.71574601]
[1768042097116,0.40676782,136.91,136.85,0.34258926]
[1768042099112,0.40676782,136.91,136.85,6.92688926]
[1768042100517,0.40676782,136.91,136.83,6.92758926]
[1768042100821,0.40676782,136.91,136.84,0.34258926]
[1768042101217,0.35676706,136.91,136.84,0.34258926]
[1768042101521,1.77938593,136.98,136.87,0.34258926]
[1768042101522,6.93656706,136.95,136.87,0.34258926]
[1768042101722,0.35676706,136.94,136.87,0.34258926]
[1768042103422,0.35676706,136.94,136.87,6.92578926]
[1768042105122,0.35676706,136.94,136.88,6.89294637]
[1768042105425,6.5788,136.97,136.89,0.31024637]
[1768042105426,0.35676706,136.96,136.89,0.31024637]
[1768042106619,0.35676706,136.96,136.89,6.89244637]
[1768042110626,6.5788,136.97,136.9,0.31163307]
[1768042110833,0.35676706,136.98,136.91,0.31163307]
[1768042112535,0.35676706,136.98,136.91,6.89293307]
[1768042113828,0.35676706,136.98,136.92,0.31181614]
[1768042118438,0.3456296,137.0,136.93,0.31267984]
[1768042119326,0.3456296,137.0,136.93,6.89307984]
[1768042121038,0.3456296,137.0,136.94,0.31329436]
[1768042125942,0.3456296,137.0,136.94,6.89309436]
[1768042126141,0.3456296,137.0,136.89,8.56305937]
[1768042126142,0.3456296,137.02,136.95,0.31427327]
[1768042127443,0.3456296,137.02,136.96,6.89336231]
[1768042128641,0.3456296,137.02,136.94,0.31464817]
[1768042129536,0.3456296,137.02,136.95,6.89451484]
[1768042131645,0.3456296,137.02,136.96,0.3154981]
[1768042132447,0.3456296,137.02,136.96,6.8944981]
[1768042136046,0.3456296,137.02,136.93,0.31618495]
[1768042136245,0.34723496,137.02,136.93,0.31618495]
[1768042137651,6.92383496,137.02,136.95,0.31651415]
[1768042142552,0.34723496,137.01,136.95,0.31651415]
[1768042155459,0.34723496,137.01,136.95,6.89571415]
[1768042156263,0.34723496,137.01,136.96,0.31935]
[1768042157065,0.05535973,137.0,136.97,0.0470371]
[1768042174778,0.05535973,137.0,136.97,0.36868585]
[1768042177186,0.37491104,137.03,136.97,0.36868585]
[1768042181996,0.37491104,137.03,136.98,6.89868878]
[1768042185691,0.37491104,137.03,136.98,0.32058878]
[1768042189104,0.37491104,137.03,136.97,0.0470371]
[1768042189699,0.37491104,137.03,136.97,0.36173429]
[1768042190706,6.95081104,137.03,136.97,0.36173429]
[1768042198410,0.37491104,137.03,136.97,0.36173429]
[1768042200116,0.37491104,137.03,136.97,6.94023429]
[1768042204916,0.34547112,137.02,136.97,0.0470371]
[1768042209419,0.34547112,137.01,136.97,0.0470371]
[1768042209620,0.34547112,137.01,136.93,6.88125675]
[1768042210321,0.34547112,137.01,136.94,0.30105675]
[1768042211321,0.04646265,136.99,136.94,0.30105675]
[1768042211519,0.34547112,136.98,136.92,0.30051577]
[1768042213817,0.34547112,136.98,136.91,6.5812]
[1768042214024,0.34547112,136.98,136.9,0.29893463]
[1768042214722,0.04659784,136.95,136.9,0.29893463]
[1768042219929,0.39206896,136.95,136.9,0.29893463]
[1768042227029,0.04659784,136.95,136.9,0.29893463]
[1768042229237,0.04659784,136.95,136.91,0.29181237]
[1768042229430,6.92397112,136.98,136.91,0.29181237]
[1768042229623,0.34547112,136.97,136.91,0.29181237]
[1768042229827,0.34547112,136.97,136.92,0.05053971]
[1768042230528,0.34547112,136.97,136.92,0.34191845]
[1768042231526,6.92277112,137.0,136.92,0.34191845]
[1768042231730,0.34547112,136.99,136.92,0.34191845]
[1768042231933,0.34547112,136.99,136.92,0.29137874]
[1768042232433,0.34547112,136.99,136.94,0.05293236]
[1768042232735,0.34547112,136.99,136.94,0.34303761]
[1768042233428,0.05599313,136.98,136.94,0.34303761]
[1768042235933,0.05599313,136.98,136.95,0.28900862]
[1768042237540,0.05599313,136.98,136.95,6.86840862]
[1768042239145,0.05599313,136.98,136.96,0.28781542]
[1768042251253,14.78305358,137.07,136.96,0.28781542]
[1768042251551,0.36480747,137.06,136.97,0.22671856]
[1768042251852,0.36480747,137.05,136.95,0.22651492]
[1768042252044,0.36480747,137.05,136.95,86.52651492]
[1768042252243,0.36480747,137.05,136.96,0.22651492]
[1768042252643,0.36480747,137.05,136.99,0.05221479]
[1768042253645,0.36480747,137.04,136.99,0.05221479]
[1768042255349,0.36480747,137.02,136.96,0.22651492]
[1768042256651,0.36480747,137.02,136.98,0.05298828]
[1768042264156,0.33769791,137.01,136.98,0.05298828]
[1768042264357,0.33769791,137.0,136.93,0.2239295]
[1768042264549,0.33769791,136.98,136.91,0.27691778]
[1768042264753,0.33769791,136.96,136.91,0.27691778]
[1768042265053,0.33769791,136.96,136.88,0.27687106]
[1768042266050,6.91559791,136.99,136.89,0.27682469]
[1768042266256,6.91559791,136.99,136.91,0.27682469]
[1768042266748,6.91559791,136.99,136.94,0.05252008]
[1768042271361,0.33769791,136.99,136.94,0.05252008]
[1768042278670,0.33769791,136.98,136.94,0.05252008]
[1768042279168,0.33769791,136.98,136.92,0.27668394]
[1768042280465,0.04632001,136.96,136.92,0.27668394]
[1768042281467,0.38401792,136.96,136.9,0.2761558]
[1768042281862,0.38401792,136.96,136.88,7.08419151]
[1768042281863,0.33769791,136.95,136.88,7.08419151]
[1768042282063,0.33769791,136.95,136.88,0.2761208]
[1768042282664,0.04950828,136.93,136.88,0.2761208]
[1768042283072,0.04950828,136.93,136.88,6.8588208]
[1768042283272,0.04950828,136.93,136.89,0.27608258]
[1768042283570,6.91669791,136.97,136.89,0.33059927]
[1768042283870,0.33769791,136.97,136.91,0.27604175]
[1768042284772,0.33769791,136.97,136.93,0.04646316]
[1768042285872,0.33769791,136.99,136.93,0.04646316]
[1768042286072,0.33769791,136.99,136.93,0.32243017]
[1768042286773,0.33769791,136.98,136.93,0.04646316]
[1768042291784,6.91629791,136.98,136.93,0.04646316]
[1768042291979,0.33769791,136.97,136.93,0.04646316]
[1768042306585,0.33023822,136.96,136.89,6.5822]
[1768042306794,0.37878031,136.96,136.89,6.9024235]
[1768042316406,0.37878031,136.96,136.9,0.31879675]
[1768042320814,0.34613873,136.95,136.88,0.31820187]
[1768042322117,0.34613873,136.94,136.88,6.90110187]
[1768042322615,0.34613873,136.94,136.89,0.31797153]
[1768042324214,0.04723,136.93,136.89,0.31797153]
[1768042332420,0.37956107,136.93,136.86,0.31694379]
[1768042333625,6.91343107,136.92,136.86,0.31694379]
[1768042335519,0.33233107,136.91,136.86,0.31694379]
[1768042335720,0.04723,136.93,136.86,0.31694379]
[1768042335721,0.37956107,136.93,136.86,0.31694379]
[1768042335925,0.33233107,136.93,136.86,0.31694379]
[1768042336320,0.04715532,136.91,136.86,0.31694379]
[1768042337628,0.04715532,136.91,136.87,0.3163665]
[1768042341230,0.37948639,136.91,136.86,6.5837]
[1768042341437,0.37948639,136.91,136.86,6.89979393]
[1768042341831,0.04715532,136.91,136.86,6.89979393]
[1768042342038,0.04715532,136.91,136.87,0.31600627]
[1768042350047,0.37948639,136.91,136.85,0.31533171]
[1768042352538,0.37948639,136.91,136.86,0.3151755]
[1768042352836,0.04715532,136.91,136.86,0.3151755]
[1768042354037,0.04715532,136.91,136.88,0.31502067]
[1768042355549,0.04715532,136.91,136.88,6.89772067]
[1768042361846,0.04715532,136.91,136.88,93.23772067]
[1768042362249,0.34500291,136.97,136.9,0.26705194]
[1768042362750,0.34500291,136.97,136.9,6.84895194]
[1768042363552,0.34500291,136.97,136.92,0.04734112]
[1768042371970,0.3413425,136.96,136.92,0.04734112]
[1768042384790,6.9207425,136.96,136.92,0.04734112]
[1768042386381,0.33064944,136.95,136.88,0.26549438]
[1768042386587,0.37688731,136.95,136.88,0.26549438]
[1768042386788,0.37688731,136.95,136.88,6.84839438]
[1768042387386,0.37688731,136.95,136.89,0.26544409]
[1768042388685,0.37688731,136.95,136.9,6.5819]
[1768042390295,0.37688731,136.95,136.9,6.84719229]
[1768042396201,0.37688731,136.95,136.88,6.84790898]
[1768042396900,0.37688731,136.95,136.89,0.26496451]
[1768042397705,0.33064944,136.94,136.89,0.26496451]
[1768042406604,0.33064944,136.93,136.87,0.26457825]
[1768042410903,6.5806,136.93,136.87,0.26457825]
[1768042411104,1.13891984,136.95,136.85,0.2643881]
[1768042411105,0.33064944,136.92,136.85,0.2643881]
[1768042412614,0.04652913,136.9,136.85,0.2643881]
[1768042416716,0.39997145,136.9,136.85,0.2643881]
[1768042423015,0.04652913,136.9,136.85,0.2643881]
[1768042426923,0.39997145,136.9,136.85,0.2643881]
[1768042427226,0.39997145,136.9,136.83,0.26400215]
[1768042427620,0.35344232,136.9,136.83,0.26400215]
[1768042432531,0.35344232,136.9,136.84,0.2637187]
[1768042433331,0.04630942,136.88,136.84,0.2637187]
[1768042433532,0.04630942,136.88,136.84,6.8485187]
[1768042437434,0.04630942,136.88,136.85,0.26357784]
[1768042437637,0.35037002,136.92,136.86,0.26357784]
[1768042455044,6.93362866,136.91,136.86,0.26357784]
[1768042455954,6.93362866,136.91,136.87,0.0513391]
[1768042461260,0.35192866,136.91,136.87,0.0513391]
[1768042473064,0.35192866,136.93,136.87,0.31407676]
[1768042476566,6.93262866,136.93,136.87,0.31407676]
[1768042478675,0.34149031,136.92,136.87,0.31407676]
[1768042523209,0.34149031,136.92,136.87,0.0513391]
[1768042526116,0.33208942,136.91,136.87,0.0513391]
[1768042539231,0.34988844,136.9,136.87,0.0513391]
[1768042541529,6.5816,136.91,136.87,0.0513391]
[1768042541928,6.93148844,136.91,136.87,0.0513391]
[1768042551033,0.35000609,136.9,136.87,0.0513391]
[1768042554724,0.39967128,136.9,136.83,13.66493058]
[1768042555526,0.39967128,136.9,136.84,0.30642921]
[1768042586267,0.39967128,136.9,136.83,6.5853]
[1768042586667,0.39967128,136.9,136.83,6.89358558]
[1768042589571,0.39967128,136.9,136.84,0.3084063]
[1768042589872,0.39967128,136.9,136.84,6.8932063]
[1768042611786,0.39967128,136.9,136.85,0.3079567]
[1768042619288,0.04966519,136.9,136.85,6.8922567]
[1768042619496,0.04966519,136.9,136.86,0.30751788]
[1768042627491,0.33244252,136.94,136.86,0.30751788]
[1768042627790,0.33244252,136.94,136.88,0.25764697]
[1768042629196,6.91254252,136.94,136.88,0.25764697]
[1768042631097,0.33244252,136.94,136.88,0.25764697]
[1768042642212,0.33244252,136.94,136.88,6.84044697]
[1768042647311,0.33244252,136.94,136.89,0.25864132]
[1768042648114,0.33244252,136.94,136.9,0.05484816]
[1768042692246,0.32223753,136.93,136.86,6.79649479]
[1768042692451,0.37560203,136.93,136.85,0.25977472]
[1768042693549,0.37560203,136.93,136.85,6.84397472]
[1768042698855,0.37560203,136.93,136.86,0.31569632]
[1768042699353,0.37560203,136.93,136.86,6.89949632]
[1768042699552,0.37560203,136.93,136.87,0.31569632]
[1768042700454,0.37560203,136.93,136.87,6.89909632]
[1768042702757,0.0533645,136.93,136.88,6.89872284]
[1768042707262,0.0533645,136.93,136.88,0.31612284]
[1768042711160,0.32223753,136.92,136.86,0.31732688]
[1768042712567,6.90333753,136.92,136.86,0.31732688]
[1768042713765,0.34701802,136.91,136.86,0.31732688]
[1768042714666,0.05606646,136.9,136.86,0.31732688]
[1768042742795,0.05606646,136.9,136.87,0.32117955]
[1768042744893,6.92900434,136.95,136.88,0.32118629]
[1768042745103,0.34910434,136.95,136.89,0.26511983]
[1768042746298,0.34910434,136.95,136.91,0.05012096]
[1768042788023,0.33097946,136.97,136.91,0.31627614]
[1768042788433,0.33097946,136.97,136.91,0.26615518]
[1768042788930,0.33097946,136.97,136.93,0.04618681]
[1768042792238,0.34678399,137.0,136.93,0.30922865]
[1768042801248,0.34678399,137.0,136.93,0.04618681]
[1768042801555,0.34678399,136.98,136.89,0.25793266]
[1768042801744,0.34678399,136.97,136.89,0.25793266]
[1768042802651,0.34678399,136.97,136.89,6.84023266]
[1768042805355,0.34678399,136.97,136.9,0.30233107]
[1768042806357,0.34678399,136.97,136.91,0.30191087]
[1768042807651,0.34678399,136.97,136.91,6.88331087]
[1768042817269,0.34678399,136.97,136.91,0.30191087]
[1768042829674,0.34678399,136.97,136.9,6.5819]
[1768042830766,0.34678399,136.97,136.91,6.87454911]
[1768042835580,0.34678399,136.97,136.91,0.29314911]
[1768042836678,0.34678399,136.97,136.89,6.87274351]
[1768042837076,0.34678399,136.97,136.9,0.29035904]
[1768042838276,0.34260948,136.96,136.9,0.29035904]
[1768042846690,0.34260948,136.95,136.9,0.29035904]
[1768042846887,0.34260948,136.95,136.88,0.28769761]
[1768042847292,0.34260948,136.94,136.86,7.10069315]
[1768042847493,0.34260948,136.94,136.86,0.28769761]
[1768042847788,0.34260948,136.92,136.86,0.28769761]
[1768042848790,0.34260948,136.91,136.86,0.28769761]
[1768042853892,0.34260948,136.91,136.84,6.87083534]
[1768042857491,0.32160006,136.9,136.84,0.28603534]
[1768042860995,0.32160006,136.9,136.85,0.28448407]
[1768042862402,0.32160006,136.9,136.83,0.2842702]
[1768042867706,0.31246668,136.89,136.83,0.2842702]
[1768042868406,0.31246668,136.88,136.83,0.2842702]
[1768042872206,0.31246668,136.88,136.81,0.28214454]
[1768042873603,0.31246668,136.87,136.81,0.28214454]
[1768042873802,0.31246668,136.87,136.8,6.5866]
[1768042874000,0.31246668,136.87,136.8,0.28178443]
[1768042874303,0.31246668,136.87,136.77,9.19940267]
[1768042874304,0.31246668,136.87,136.78,0.28178443]
[1768042875713,0.31246668,136.85,136.79,0.28160625]
[1768042875909,195.95,136.95,136.78,6.5875]
[1768042875910,0.31246668,136.91,136.82,0.28143011]
[1768042877611,0.31246668,136.89,136.82,0.28143011]
[1768042879115,0.31246668,136.89,136.83,0.28091076]
[1768042883422,6.89496668,136.89,136.83,0.28091076]
[1768042889524,6.89566668,136.88,136.83,0.28091076]
[1768042889726,6.89566668,136.88,136.8,0.27928358]
[1768042889727,0.31246668,136.87,136.8,0.27928358]
[1768042890624,0.31246668,136.86,136.8,0.27928358]
[1768042891121,0.31246668,136.85,136.78,0.2789787]
[1768042892630,0.31246668,136.84,136.78,0.2789787]
[1768042897927,0.30903177,136.83,136.78,0.2789787]
[1768042903124,0.30903177,136.83,136.76,6.86601539]
[1768042909834,0.30903177,136.82,136.76,0.27741539]
[1768042911530,6.89513177,136.82,136.76,0.27741539]
[1768042911734,0.3334406,136.81,136.76,0.27741539]
[1768042915636,6.5861,136.82,136.76,0.27741539]
[1768042916336,6.9195406,136.82,136.76,0.27741539]
[1768042916836,6.5852,136.84,136.76,0.27741539]
[1768042917035,0.3334406,136.85,136.76,0.27741539]
[1768042918236,1.14021472,136.86,136.76,0.27741539]
[1768042918237,6.5854,136.83,136.76,0.27741539]
[1768042918536,6.9188406,136.83,136.76,0.27741539]
[1768042919035,6.9188406,136.83,136.78,0.05294]
[1768042919241,0.04903965,136.81,136.78,0.05294]
[1768042923538,0.36202217,136.81,136.73,7.07148001]
[1768042923840,0.36202217,136.81,136.73,0.27258074]
[1768042924636,0.04903965,136.81,136.74,0.27241059]
[1768042924846,0.04903965,136.81,136.76,0.27241059]
[1768042925847,0.04903965,136.81,136.78,0.27207614]
[1768042946569,0.04903965,136.81,136.79,0.26912426]
[1768042956880,0.31298252,136.84,136.79,8.31632426]
[1768042957073,0.31298252,136.84,136.79,6.85632426]
[1768042960180,6.89983382,136.86,136.8,0.219031]
[1768042961078,0.31583382,136.85,136.8,0.219031]
[1768042961778,0.31583382,136.87,136.8,0.219031]
[1768042963585,6.89933382,136.87,136.8,0.219031]
[1768042965987,0.31583382,136.86,136.8,0.219031]
[1768042968782,0.31583382,136.86,136.8,6.805631]
[1768042968989,0.31583382,136.86,136.81,0.21805983]
[1768042975587,0.31146713,136.89,136.81,0.21805983]
[1768042977293,0.31146713,136.88,136.81,6.80425983]
[1768042978491,0.31146713,136.88,136.82,0.2166145]
[1768042981994,0.31146713,136.87,136.82,0.2166145]
[1768042982298,0.31146713,136.87,136.81,6.5862]
[1768042983183,0.31146713,136.87,136.8,0.21625816]
[1768042983384,0.31643808,136.86,136.8,0.21625816]
[1768042984201,0.31643808,136.85,136.78,0.21602505]
[1768042985601,0.31643808,136.85,136.78,6.80362505]
[1768042988398,0.31643808,136.87,136.8,0.21569638]
[1768042989606,0.31643808,136.87,136.8,6.80239638]
[1768042990902,6.5833,136.88,136.82,0.21545966]
[1768042991104,0.31643808,136.91,136.82,0.21545966]
[1768042992711,0.31643808,136.89,136.81,0.21538256]
[1768042993306,1.27169742,136.96,136.8,0.21530634]
[1768042993307,0.31643808,136.87,136.8,0.21530634]
[1768042994209,0.31643808,136.87,136.8,6.80200634]
[1768042996108,0.31643808,136.87,136.77,103.62145827]
[1768042996109,0.31643808,136.83,136.76,0.2150829]
[1768042996607,0.31643808,136.85,136.79,0.2150829]
[1768042999810,0.31643808,136.85,136.77,0.21479678]
[1768043007126,0.31643808,136.85,136.78,0.2143268]
[1768043011827,0.31643808,136.85,136.77,6.5881]
[1768043012318,0.31643808,136.85,136.77,6.80211363]
[1768043012626,0.31643808,136.85,136.78,6.80151363]
[1768043013020,0.31643808,136.82,136.74,9.13769674]
[1768043013329,0.31643808,136.82,136.72,0.30969261]
[1768043013330,0.30512834,136.8,136.72,0.30969261]
[1768043014527,0.30512834,136.8,136.72,6.89999261]
[1768043016622,0.30512834,136.79,136.72,0.30969261]
[1768043017632,6.89252834,136.79,136.72,0.30969261]
[1768043018333,6.89162834,136.81,136.72,0.30969261]
[1768043018629,0.30512834,136.81,136.73,1.14055827]
[1768043018824,0.30512834,136.81,136.74,0.30969261]
[1768043019534,0.30512834,136.81,136.75,0.30969261]
[1768043025444,0.30512834,136.83,136.76,0.30969261]
[1768043026948,0.30512834,136.83,136.76,6.89819261]
[1768043030153,0.30512834,136.83,136.77,0.30969261]
[1768043030554,0.30512834,136.83,136.78,0.30969261]
[1768043040161,6.5847,136.85,136.79,0.31486106]
[1768043040352,0.32305009,136.86,136.79,0.31486106]
[1768043041565,6.90705009,136.86,136.79,0.31486106]
[1768043041870,0.32305009,136.86,136.8,0.31486106]
[1768043060280,0.32305009,136.86,136.79,6.5871]
[1768043060480,188.7714,136.9,136.78,0.32882681]
[1768043060481,6.89926367,136.85,136.78,0.32882681]
[1768043063085,0.31476367,136.84,136.78,0.32882681]
[1768043076190,0.33415089,136.88,136.79,0.30908465]
[1768043077597,6.91725089,136.88,136.81,0.30908465]
[1768043078292,0.33415089,136.87,136.81,0.30908465]
[1768043080802,6.91765089,136.87,136.81,0.30908465]
[1768043081299,0.33415089,136.86,136.8,6.5867]
[1768043081600,0.33415089,136.86,136.8,6.89578465]
[1768043085504,0.33415089,136.86,136.81,0.30908465]
[1768043095305,0.33415089,136.86,136.79,0.31356355]
[1768043095514,0.30117198,136.85,136.79,0.31356355]
[1768043097014,0.30117198,136.84,136.77,7.12133823]
[1768043097215,0.30117198,136.84,136.77,0.31356355]
[1768043098714,0.30117198,136.84,136.77,6.90166355]
[1768043101617,0.30117198,136.83,136.77,0.31356355]
[1768043102309,0.30117198,136.82,136.77,0.31356355]
[1768043111539,0.30599534,136.84,136.77,0.31356355]
[1768043112436,6.5848,136.85,136.79,0.32676592]
[1768043112743,0.30599534,136.86,136.79,0.32676592]
[1768043113642,0.30599534,136.86,136.8,0.32676592]
[1768043116236,6.5838,136.87,136.81,0.32676592]
[1768043117545,6.88979534,136.87,136.81,0.32676592]
[1768043121645,0.30599534,136.86,136.81,0.32676592]
[1768043124350,6.584,136.86,136.78,6.5875]
[1768043124550,0.30599534,136.85,136.79,0.32676592]
[1768043125649,6.89069534,136.85,136.79,0.32676592]
[1768043126152,0.30599534,136.84,136.79,0.32676592]
[1768043126652,0.30599534,136.84,136.77,0.32676592]
[1768043126854,0.30599534,136.83,136.77,0.32676592]
[1768043136458,0.30077551,136.82,136.77,0.32676592]
[1768043140357,0.30077551,136.82,136.76,6.90634166]
[1768043156668,0.30077551,136.82,136.77,0.32482498]
[1768043188101,0.32763058,136.84,136.77,0.32482498]
[1768043189601,0.32763058,136.84,136.78,0.33196199]
[1768043192204,6.91273058,136.84,136.78,0.33196199]
[1768043195413,0.30894085,136.82,136.76,0.30908362]
[1768043196709,6.89494085,136.82,136.76,0.30908362]
[1768043207022,0.30894085,136.81,136.76,0.30908362]
[1768043209820,0.30894085,136.8,136.74,0.30908362]
[1768043211528,6.89584085,136.8,136.74,0.30908362]
[1768043227138,0.31962954,136.79,136.72,7.1290136]
[1768043227338,0.31962954,136.79,136.72,0.32123892]
[1768043228646,0.31962954,136.79,136.72,6.91183892]
[1768043229350,0.31962954,136.78,136.72,6.91183892]
[1768043229846,0.31962954,136.78,136.72,0.32123892]
[1768043232151,0.31962954,136.77,136.71,93.31233892]
[1768043233051,0.31962954,136.77,136.71,86.72123892]
[1768043235147,0.31962954,136.77,136.71,0.32123892]
[1768043236043,6.5885,136.77,136.71,0.32123892]
[1768043236248,0.31962954,136.76,136.71,0.32123892]
[1768043242061,6.90852954,136.76,136.71,0.32123892]
[1768043247366,0.31962954,136.75,136.69,6.5917]
[1768043247666,0.31962954,136.75,136.69,6.91293892]
[1768043249372,6.90892954,136.75,136.69,0.32123892]
[1768043249759,1.14221034,136.77,136.67,7.73501034]
[1768043249760,0.31962954,136.74,136.67,0.32123892]
[1768043249954,0.31962954,136.74,136.68,0.32123892]
[1768043250163,0.31962954,136.76,136.68,0.32123892]
[1768043251569,6.90852954,136.76,136.69,6.91323892]
[1768043256573,0.30943676,136.75,136.69,6.91323892]
[1768043260575,0.30943676,136.75,136.7,0.30301348]
[1768043271279,0.33096243,136.82,136.73,0.31070777]
[1768043271480,0.33096243,136.81,136.73,0.31070777]
[1768043271873,6.91746243,136.81,136.73,6.90060777]
[1768043272091,6.91746243,136.81,136.74,0.31070777]
[1768043280906,6.91746243,136.81,136.72,1.14221034]
[1768043280907,0.33096243,136.79,136.72,0.31070777]
[1768043282605,0.33096243,136.79,136.72,6.90120777]
[1768043289815,0.33096243,136.79,136.72,6.5905]
[1768043290011,0.31740011,136.78,136.72,6.5905]
[1768043291616,0.31740011,136.78,136.72,6.90008115]
[1768043294218,1.14221034,136.8,136.69,0.30958115]
[1768043294219,0.31740011,136.74,136.69,0.30958115]
[1768043294719,1.14221034,136.76,136.7,0.30958115]
[1768043294720,0.31740011,136.76,136.7,0.30958115]
[1768043297221,0.31740011,136.75,136.68,0.30958115]
[1768043299029,0.31740011,136.74,136.68,0.30958115]
[1768043300127,6.90720011,136.74,136.68,0.30958115]
[1768043304032,0.31740011,136.74,136.68,0.30958115]
[1768043311736,0.31740011,136.74,136.68,6.90208115]
[1768043312137,0.31740011,136.76,136.7,0.30958115]
[1768043313026,0.31740011,136.76,136.71,6.90058115]
[1768043314531,6.5875,136.79,136.72,0.30648526]
[1768043314730,0.31278856,136.78,136.72,0.30648526]
[1768043316133,0.31278856,136.78,136.73,0.30648526]
[1768043316630,0.31278856,136.78,136.72,6.5905]
[1768043316830,0.31278856,136.78,136.71,0.30648526]
[1768043317637,0.31278856,136.77,136.71,0.30648526]
[1768043349276,0.31278856,136.77,136.72,0.32849041]
[1768043350167,6.90108856,136.77,136.72,0.32849041]
[1768043377010,0.31278856,136.77,136.72,0.32849041]
[1768043407645,0.04878553,136.76,136.72,0.32849041]
[1768043408242,0.32697536,136.79,136.73,0.32774291]
[1768043408548,0.32697536,136.79,136.73,0.37429102]
[1768043408745,0.32697536,136.81,136.75,0.32774291]
[1768043409745,0.32697536,136.81,136.77,0.04743742]
[1768043411453,0.32697536,136.85,136.77,0.37518033]
[1768043412649,0.32697536,136.85,136.78,0.32774291]
[1768043413450,0.32697536,136.85,136.8,0.05484399]
[1768043414736,0.32697536,136.87,136.8,0.3825869]
[1768043416550,0.32697536,136.87,136.8,6.9692869]
[1768043416750,0.32697536,136.87,136.81,0.32774291]
[1768043417946,0.32697536,136.87,136.8,0.05484399]
[1768043418448,0.32697536,136.87,136.81,0.32774291]
[1768043420950,0.32697536,136.89,136.82,0.32774291]
[1768043421843,0.32697536,136.89,136.84,0.05146177]
[1768043423144,0.32697536,136.94,136.86,0.32774291]
[1768043423846,0.32697536,136.94,136.87,6.91094291]
[1768043424049,0.32697536,136.94,136.89,0.05419568]
[1768043426659,0.32697536,136.96,136.9,0.32774291]
[1768043427463,0.32697536,136.96,136.92,0.05331541]
[1768043430072,0.32697536,136.99,136.93,0.32774291]
[1768043430965,0.32697536,136.99,136.95,0.04637785]
[1768043432175,0.32697536,136.99,136.93,0.32774291]
[1768043435474,86.66697536,136.99,136.93,0.32774291]
[1768043438276,0.30169205,136.98,136.93,0.32774291]
[1768043442979,0.30169205,136.98,136.92,6.5808]
[1768043444180,0.30169205,136.98,136.91,0.31711508]
[1768043448888,0.30169205,136.97,136.89,0.31711508]
[1768043450685,0.30169205,136.96,136.89,0.31711508]
[1768043452479,0.30169205,136.96,136.89,6.89951508]
[1768043460091,0.30169205,136.96,136.9,0.30792788]
[1768043460791,0.32070284,136.95,136.9,0.30792788]
[1768043469606,0.32375475,136.94,136.88,0.32210084]
[1768043470908,0.32375475,136.93,136.86,0.32210084]
[1768043472709,0.32375475,136.93,136.87,0.32210084]
[1768043497245,0.30357206,136.92,136.87,0.32210084]
[1768043523461,6.5806,136.93,136.87,0.32210084]
[1768043523663,92.9206,136.93,136.87,0.32210084]
[1768043528465,6.5806,136.93,136.87,0.32210084]
[1768043529569,6.90321411,136.93,136.87,0.32210084]
[1768043531672,0.32261411,136.93,136.87,0.32210084]
[1768043540771,92.9201,136.94,136.87,0.32210084]